[Event "*** Titled Tuesday Blitz"]
[Site "Chess.com"]
[Date "2019.10.01"]
[Round "2"]
[White "mbojan"]
[Black "MITerryble"]
[Result "0-1"]
[WhiteElo "2550"]
[BlackElo "2844"]
[TimeControl "180+2"]
[EndTime "13:20:03 PDT"]
[Termination "MITerryble won by resignation"]

1. e4 {[%clk 0:03:01.9]} 1... e6 {[%clk 0:03:01.1]} 2. d4 {[%clk 0:03:03.1]}
2... d5 {[%clk 0:03:02.3]} 3. Nc3 {[%clk 0:03:04.7]} 3... Nf6 {[%clk 0:03:03.2]}
4. Bg5 {[%clk 0:03:05.2]} 4... Bb4 {[%clk 0:03:03.9]} 5. e5 {[%clk 0:03:01.3]}
5... h6 {[%clk 0:03:05]} 6. Bh4 {[%clk 0:03:02.9]} 6... g5 {[%clk 0:03:05.5]} 7.
Bg3 {[%clk 0:03:04.5]} 7... Ne4 {[%clk 0:03:07]} 8. Ne2 {[%clk 0:03:06.2]} 8...
h5 {[%clk 0:03:07.1]} 9. h4 {[%clk 0:02:44.8]} 9... Nxg3 {[%clk 0:03:04.6]} 10.
Nxg3 {[%clk 0:02:45.5]} 10... gxh4 {[%clk 0:03:05.5]} 11. Nxh5 {[%clk
0:02:39.2]} 11... Qg5 {[%clk 0:03:05.9]} 12. Nf6+ {[%clk 0:02:36.8]} 12... Kd8
{[%clk 0:03:06.9]} 13. a3 {[%clk 0:02:12.5]} 13... Be7 {[%clk 0:03:06.5]} 14.
Ng4 {[%clk 0:02:02.5]} 14... Bd7 {[%clk 0:02:58.5]} 15. Ne3 {[%clk 0:02:02.9]}
15... c5 {[%clk 0:02:57.8]} 16. Bb5 {[%clk 0:01:43.4]} 16... cxd4 {[%clk
0:02:41.3]} 17. Qxd4 {[%clk 0:01:42.8]} 17... Bxb5 {[%clk 0:02:42.2]} 18. Nxb5
{[%clk 0:01:41.5]} 18... Nc6 {[%clk 0:02:43.1]} 19. Qd2 {[%clk 0:01:39.7]} 19...
Qxe5 {[%clk 0:02:38.5]} 20. O-O-O {[%clk 0:01:37]} 20... a6 {[%clk 0:02:39.2]}
21. Nc3 {[%clk 0:00:51]} 21... Kc8 {[%clk 0:02:21.3]} 22. Rhe1 {[%clk 0:00:47]}
22... Qg5 {[%clk 0:02:22.3]} 23. f4 {[%clk 0:00:39.8]} 23... Qxf4 {[%clk
0:02:21.8]} 24. Rf1 {[%clk 0:00:41.1]} 24... Qe5 {[%clk 0:02:15.5]} 25. Rxf7
{[%clk 0:00:31.2]} 25... Bg5 {[%clk 0:02:16.7]} 26. Kb1 {[%clk 0:00:14.1]} 26...
Qxe3 {[%clk 0:02:17.4]} 27. Nxd5 {[%clk 0:00:10.8]} 27... Qxd2 {[%clk
0:02:15.5]} 28. Nb6+ {[%clk 0:00:12]} 28... Kb8 {[%clk 0:02:16.9]} 29. Rxd2
{[%clk 0:00:13.1]} 29... Bxd2 {[%clk 0:02:17.8]} 30. Nd7+ {[%clk 0:00:15]} 30...
Ka7 {[%clk 0:02:19.1]} 31. Nc5 {[%clk 0:00:16.9]} 31... Rab8 {[%clk 0:02:20.4]}
32. Nxe6 {[%clk 0:00:18.6]} 32... Be3 {[%clk 0:02:20.3]} 0-1

[Event "*** Titled Tuesday Blitz"]
[Site "Chess.com"]
[Date "2019.10.01"]
[Round "2"]
[White "therealtrader"]
[Black "Alexander_Moskalenko"]
[Result "0-1"]
[WhiteElo "2591"]
[BlackElo "2891"]
[TimeControl "180+2"]
[EndTime "13:20:11 PDT"]
[Termination "Alexander_Moskalenko won by resignation"]

1. d4 {[%clk 0:03:01.9]} 1... Nf6 {[%clk 0:03:00.2]} 2. c4 {[%clk 0:03:02.5]}
2... e6 {[%clk 0:03:02.1]} 3. Nf3 {[%clk 0:03:03]} 3... d5 {[%clk 0:03:02.6]} 4.
Nc3 {[%clk 0:03:04]} 4... Bb4 {[%clk 0:03:02.6]} 5. cxd5 {[%clk 0:03:03.8]} 5...
exd5 {[%clk 0:03:03.7]} 6. Bf4 {[%clk 0:03:05.1]} 6... O-O {[%clk 0:03:03.1]} 7.
e3 {[%clk 0:03:06.6]} 7... Bf5 {[%clk 0:02:58.1]} 8. Qb3 {[%clk 0:03:00]} 8...
Nc6 {[%clk 0:02:57.2]} 9. Bb5 {[%clk 0:03:00.9]} 9... Bxc3+ {[%clk 0:02:49.3]}
10. bxc3 {[%clk 0:03:00]} 10... Na5 {[%clk 0:02:48.3]} 11. Qa4 {[%clk
0:02:37.2]} 11... c6 {[%clk 0:02:48]} 12. Be2 {[%clk 0:02:36.7]} 12... Ne4
{[%clk 0:02:42.8]} 13. Rc1 {[%clk 0:02:30.1]} 13... Bg4 {[%clk 0:02:43.9]} 14.
h3 {[%clk 0:02:29.3]} 14... Bh5 {[%clk 0:02:43.4]} 15. O-O {[%clk 0:02:18.9]}
15... Bxf3 {[%clk 0:02:42.8]} 16. gxf3 {[%clk 0:02:19.9]} 16... Nd2 {[%clk
0:02:43.9]} 17. Rfd1 {[%clk 0:02:19.5]} 17... Ndc4 {[%clk 0:02:44.8]} 18. Kh2
{[%clk 0:02:15.2]} 18... b5 {[%clk 0:02:43.7]} 19. Qc2 {[%clk 0:02:15.8]} 19...
Nb7 {[%clk 0:02:42.4]} 20. Rg1 {[%clk 0:02:08.9]} 20... g6 {[%clk 0:02:31.5]}
21. a4 {[%clk 0:02:06.7]} 21... Re8 {[%clk 0:02:31.8]} 22. Bd3 {[%clk
0:01:50.3]} 22... Re6 {[%clk 0:02:30.9]} 23. Bg5 {[%clk 0:01:45.1]} 23... Qd6+
{[%clk 0:02:26.5]} 24. Rg3 {[%clk 0:01:46.1]} 24... Rae8 {[%clk 0:02:16.8]} 25.
Rg1 {[%clk 0:01:43.7]} 25... Qa3 {[%clk 0:02:09.2]} 26. axb5 {[%clk 0:01:43.1]}
26... cxb5 {[%clk 0:02:11.1]} 27. Rb1 {[%clk 0:01:37.6]} 27... a6 {[%clk
0:02:07.7]} 28. h4 {[%clk 0:01:37.8]} 28... Rc8 {[%clk 0:01:55.6]} 29. h5 {[%clk
0:01:32.8]} 29... Nxe3 {[%clk 0:01:56.8]} 30. Bxe3 {[%clk 0:00:45.5]} 30... Rxc3
{[%clk 0:01:57.5]} 31. hxg6 {[%clk 0:00:33.7]} 31... hxg6 {[%clk 0:01:57.2]} 32.
Bxg6 {[%clk 0:00:32.7]} 32... Rxc2 {[%clk 0:01:56.5]} 33. Bxc2+ {[%clk
0:00:32.5]} 33... Kf8 {[%clk 0:01:58.1]} 34. Rc1 {[%clk 0:00:32.2]} 34... Rxe3
{[%clk 0:01:58.3]} 0-1

[Event "*** Titled Tuesday Blitz"]
[Site "Chess.com"]
[Date "2019.10.01"]
[Round "2"]
[White "Olga_Zhuravleva"]
[Black "ShahMatKanal"]
[Result "1-0"]
[WhiteElo "2200"]
[BlackElo "2451"]
[TimeControl "180+2"]
[EndTime "13:20:14 PDT"]
[Termination "Olga_Zhuravleva won by resignation"]

1. e4 {[%clk 0:03:00.6]} 1... c5 {[%clk 0:03:00.8]} 2. Nf3 {[%clk 0:03:00.8]}
2... Nc6 {[%clk 0:03:01.9]} 3. Nc3 {[%clk 0:03:01.1]} 3... e5 {[%clk 0:03:01.2]}
4. Bc4 {[%clk 0:03:01.1]} 4... d6 {[%clk 0:03:02.6]} 5. O-O {[%clk 0:03:00.7]}
5... Be7 {[%clk 0:03:03.9]} 6. d3 {[%clk 0:03:00.2]} 6... Nf6 {[%clk 0:03:00.9]}
7. Nd5 {[%clk 0:03:01.6]} 7... Nxd5 {[%clk 0:02:59.8]} 8. Bxd5 {[%clk
0:03:01.8]} 8... O-O {[%clk 0:03:00.6]} 9. c3 {[%clk 0:03:01.9]} 9... Kh8 {[%clk
0:02:57.4]} 10. d4 {[%clk 0:02:54.4]} 10... cxd4 {[%clk 0:02:50.3]} 11. cxd4
{[%clk 0:02:54.7]} 11... Bg4 {[%clk 0:02:37]} 12. Bxc6 {[%clk 0:02:52.6]} 12...
bxc6 {[%clk 0:02:37.6]} 13. dxe5 {[%clk 0:02:53.3]} 13... Bxf3 {[%clk
0:02:24.2]} 14. Qxf3 {[%clk 0:02:53.1]} 14... dxe5 {[%clk 0:02:25.7]} 15. Rd1
{[%clk 0:02:52]} 15... Qb6 {[%clk 0:02:23.1]} 16. h3 {[%clk 0:02:47.2]} 16...
Bc5 {[%clk 0:02:18.6]} 17. b3 {[%clk 0:02:42.3]} 17... Bd4 {[%clk 0:02:18.5]}
18. Rb1 {[%clk 0:02:42]} 18... Rad8 {[%clk 0:02:18.9]} 19. Ba3 {[%clk
0:02:39.1]} 19... c5 {[%clk 0:02:19.1]} 20. Bb2 {[%clk 0:02:31.8]} 20... f6
{[%clk 0:02:15.6]} 21. Bc3 {[%clk 0:02:18.4]} 21... Qa6 {[%clk 0:02:08.8]} 22.
a4 {[%clk 0:02:10.4]} 22... Rd7 {[%clk 0:02:06]} 23. Be1 {[%clk 0:02:10.9]}
23... Rfd8 {[%clk 0:02:05.7]} 24. Rdc1 {[%clk 0:02:10.3]} 24... Qc6 {[%clk
0:01:59.6]} 25. Rc4 {[%clk 0:02:07.9]} 25... Rb8 {[%clk 0:01:54.1]} 26. b4
{[%clk 0:01:33.9]} 26... Qxa4 {[%clk 0:01:51.8]} 27. bxc5 {[%clk 0:01:33.2]}
27... Rxb1 {[%clk 0:01:40.3]} 28. Rxa4 {[%clk 0:01:33.8]} 28... Rxe1+ {[%clk
0:01:40.9]} 29. Kh2 {[%clk 0:01:34.2]} 29... Rc1 {[%clk 0:01:19.3]} 30. Qf5
{[%clk 0:01:27.9]} 30... Rc7 {[%clk 0:01:03.6]} 31. Rxa7 {[%clk 0:01:22.5]}
31... R1xc5 {[%clk 0:00:58.5]} 32. Ra8+ {[%clk 0:01:22.5]} 32... Rc8 {[%clk
0:00:59.7]} 33. Rxc8+ {[%clk 0:01:23.1]} 1-0

[Event "*** Titled Tuesday Blitz"]
[Site "Chess.com"]
[Date "2019.10.01"]
[Round "2"]
[White "Zhuu96"]
[Black "Keaton87"]
[Result "1-0"]
[WhiteElo "2976"]
[BlackElo "2611"]
[TimeControl "180+2"]
[EndTime "13:20:20 PDT"]
[Termination "Zhuu96 won by resignation"]

1. e4 {[%clk 0:03:01.9]} 1... c5 {[%clk 0:03:00.7]} 2. Nf3 {[%clk 0:03:02.5]}
2... d6 {[%clk 0:03:02]} 3. d4 {[%clk 0:03:04]} 3... Nf6 {[%clk 0:03:03.6]} 4.
Nc3 {[%clk 0:03:04.1]} 4... cxd4 {[%clk 0:03:04.8]} 5. Nxd4 {[%clk 0:03:05.7]}
5... g6 {[%clk 0:03:06.4]} 6. Be2 {[%clk 0:03:03.4]} 6... Bg7 {[%clk 0:03:07.3]}
7. O-O {[%clk 0:03:05.1]} 7... Nc6 {[%clk 0:03:08.6]} 8. Nb3 {[%clk 0:03:05.8]}
8... O-O {[%clk 0:03:09.1]} 9. Re1 {[%clk 0:03:07]} 9... Be6 {[%clk 0:03:10.2]}
10. Bg5 {[%clk 0:03:05.5]} 10... a5 {[%clk 0:03:11.3]} 11. a4 {[%clk 0:03:04.7]}
11... Rc8 {[%clk 0:03:12]} 12. Bf1 {[%clk 0:03:05.4]} 12... Nb4 {[%clk
0:03:10.9]} 13. Nd4 {[%clk 0:03:04.8]} 13... Bc4 {[%clk 0:03:10.2]} 14. Bxc4
{[%clk 0:03:02.1]} 14... Rxc4 {[%clk 0:03:11.2]} 15. Ndb5 {[%clk 0:02:40.7]}
15... h6 {[%clk 0:03:11.1]} 16. Bh4 {[%clk 0:02:37.7]} 16... Qb6 {[%clk
0:03:01.8]} 17. Na3 {[%clk 0:02:33.6]} 17... Rcc8 {[%clk 0:02:56.8]} 18. Ncb5
{[%clk 0:02:33.3]} 18... Rfd8 {[%clk 0:02:27.2]} 19. c3 {[%clk 0:02:32.6]} 19...
Na6 {[%clk 0:02:23]} 20. Qe2 {[%clk 0:02:24.7]} 20... Qc5 {[%clk 0:02:13]} 21.
Kh1 {[%clk 0:02:20.1]} 21... Nc7 {[%clk 0:01:55]} 22. f3 {[%clk 0:02:10.6]}
22... Nxb5 {[%clk 0:01:55.7]} 23. axb5 {[%clk 0:02:11.5]} 23... Qc7 {[%clk
0:01:44.7]} 24. Bf2 {[%clk 0:02:11.6]} 24... Nd7 {[%clk 0:01:44.9]} 25. b6
{[%clk 0:02:05.9]} 25... Qc6 {[%clk 0:01:28.5]} 26. Nb5 {[%clk 0:02:05.2]} 26...
Qc4 {[%clk 0:01:01.6]} 27. Nc7 {[%clk 0:01:58.7]} 27... Qb3 {[%clk 0:00:56.2]}
28. Rxa5 {[%clk 0:01:58]} 28... Nc5 {[%clk 0:00:31.3]} 29. Ra3 {[%clk
0:01:44.5]} 1-0

[Event "*** Titled Tuesday Blitz"]
[Site "Chess.com"]
[Date "2019.10.01"]
[Round "2"]
[White "Spalir"]
[Black "santosalberto1987"]
[Result "1-0"]
[WhiteElo "2819"]
[BlackElo "2380"]
[TimeControl "180+2"]
[EndTime "13:20:21 PDT"]
[Termination "Spalir won by resignation"]

1. d4 {[%clk 0:03:01.9]} 1... d5 {[%clk 0:02:57.1]} 2. c4 {[%clk 0:03:02.9]}
2... c6 {[%clk 0:02:58.4]} 3. Nf3 {[%clk 0:03:03.9]} 3... Nf6 {[%clk 0:02:59.8]}
4. Nc3 {[%clk 0:03:05]} 4... dxc4 {[%clk 0:03:00.9]} 5. a4 {[%clk 0:03:05.2]}
5... Bf5 {[%clk 0:03:01.5]} 6. Ne5 {[%clk 0:03:06.5]} 6... e6 {[%clk 0:03:02.5]}
7. f3 {[%clk 0:03:06.3]} 7... Bb4 {[%clk 0:03:03.7]} 8. e4 {[%clk 0:03:02.6]}
8... Bxe4 {[%clk 0:03:03.7]} 9. fxe4 {[%clk 0:03:04.5]} 9... Nxe4 {[%clk
0:03:05.6]} 10. Bd2 {[%clk 0:02:59.9]} 10... Qxd4 {[%clk 0:03:06.2]} 11. Nxe4
{[%clk 0:02:59.9]} 11... Qxe4+ {[%clk 0:03:08.1]} 12. Qe2 {[%clk 0:03:01.2]}
12... Bxd2+ {[%clk 0:03:09.6]} 13. Kxd2 {[%clk 0:03:03.1]} 13... Qd5+ {[%clk
0:03:11.1]} 14. Kc2 {[%clk 0:02:30.1]} 14... Na6 {[%clk 0:03:12.1]} 15. Nxc4
{[%clk 0:02:29.2]} 15... O-O-O {[%clk 0:03:12.2]} 16. Qf3 {[%clk 0:02:23.6]}
16... f6 {[%clk 0:03:03.1]} 17. Be2 {[%clk 0:02:18.2]} 17... Qxf3 {[%clk
0:02:50.3]} 18. Bxf3 {[%clk 0:02:16.6]} 18... e5 {[%clk 0:02:48.2]} 19. Rhd1
{[%clk 0:02:17.1]} 19... Kc7 {[%clk 0:02:45.2]} 20. Kc3 {[%clk 0:02:13.6]} 20...
Nc5 {[%clk 0:02:40.2]} 21. b4 {[%clk 0:02:12.8]} 21... Ne6 {[%clk 0:02:41.2]}
22. Rab1 {[%clk 0:02:10]} 22... Rd4 {[%clk 0:02:38.3]} 23. b5 {[%clk 0:02:08.9]}
23... c5 {[%clk 0:02:35]} 24. a5 {[%clk 0:02:02.6]} 24... Rhd8 {[%clk
0:02:12.1]} 25. b6+ {[%clk 0:02:00.8]} 25... axb6 {[%clk 0:02:14]} 26. axb6+
{[%clk 0:02:00.4]} 26... Kb8 {[%clk 0:02:13.6]} 27. Rxd4 {[%clk 0:01:54.4]}
27... cxd4+ {[%clk 0:02:12.4]} 28. Kd2 {[%clk 0:01:52.6]} 28... Nc5 {[%clk
0:02:08.7]} 29. Rb5 {[%clk 0:01:48]} 29... Ne6 {[%clk 0:01:19]} 30. Na5 {[%clk
0:01:46.8]} 30... Rd7 {[%clk 0:01:13.3]} 31. Bg4 {[%clk 0:01:46.5]} 31... Re7
{[%clk 0:01:13]} 32. Rd5 {[%clk 0:01:43.1]} 1-0

[Event "*** Titled Tuesday Blitz"]
[Site "Chess.com"]
[Date "2019.10.01"]
[Round "2"]
[White "comsac"]
[Black "JoNAs_88"]
[Result "1-0"]
[WhiteElo "2268"]
[BlackElo "2489"]
[TimeControl "180+2"]
[EndTime "13:20:26 PDT"]
[Termination "comsac won by resignation"]

1. e4 {[%clk 0:03:01.9]} 1... c6 {[%clk 0:03:00.9]} 2. d4 {[%clk 0:03:02.7]}
2... d5 {[%clk 0:03:01.6]} 3. exd5 {[%clk 0:03:04.6]} 3... cxd5 {[%clk
0:03:02.6]} 4. Bf4 {[%clk 0:03:06.5]} 4... Nc6 {[%clk 0:03:02.7]} 5. c3 {[%clk
0:03:07.4]} 5... Nf6 {[%clk 0:03:04.3]} 6. Bd3 {[%clk 0:03:08.3]} 6... g6 {[%clk
0:03:06]} 7. Nf3 {[%clk 0:03:09.2]} 7... Bg7 {[%clk 0:03:07.7]} 8. O-O {[%clk
0:03:10.2]} 8... O-O {[%clk 0:03:09.4]} 9. Nbd2 {[%clk 0:03:10]} 9... Bg4 {[%clk
0:03:09.6]} 10. Re1 {[%clk 0:03:09.5]} 10... e6 {[%clk 0:03:08]} 11. Qb1 {[%clk
0:03:00.1]} 11... Bxf3 {[%clk 0:03:02.4]} 12. Nxf3 {[%clk 0:03:00.8]} 12... Nd7
{[%clk 0:03:03.4]} 13. a4 {[%clk 0:02:40.9]} 13... a6 {[%clk 0:03:03.6]} 14. Qc2
{[%clk 0:02:37.9]} 14... Rc8 {[%clk 0:03:02.1]} 15. Qe2 {[%clk 0:02:37.8]} 15...
Na5 {[%clk 0:03:01.1]} 16. Ne5 {[%clk 0:02:12.8]} 16... Nxe5 {[%clk 0:02:57.9]}
17. Bxe5 {[%clk 0:02:13.8]} 17... Nc4 {[%clk 0:02:58.5]} 18. Bxg7 {[%clk
0:02:11.1]} 18... Kxg7 {[%clk 0:02:59.3]} 19. g3 {[%clk 0:02:04.6]} 19... Qf6
{[%clk 0:02:50.3]} 20. h4 {[%clk 0:01:45.6]} 20... Rc7 {[%clk 0:02:43.8]} 21. h5
{[%clk 0:01:36.7]} 21... Rb8 {[%clk 0:02:44]} 22. hxg6 {[%clk 0:01:26.3]} 22...
hxg6 {[%clk 0:02:45.9]} 23. Kg2 {[%clk 0:01:27.5]} 23... b5 {[%clk 0:02:45]} 24.
axb5 {[%clk 0:01:26.1]} 24... axb5 {[%clk 0:02:46.9]} 25. Rh1 {[%clk 0:01:25.3]}
25... b4 {[%clk 0:02:43.8]} 26. Bxc4 {[%clk 0:01:24.8]} 26... Rxc4 {[%clk
0:02:44.2]} 27. Qd2 {[%clk 0:01:25.9]} 27... Kg8 {[%clk 0:02:32.3]} 28. Qh6
{[%clk 0:01:21.2]} 28... Qg7 {[%clk 0:02:33.1]} 29. Qf4 {[%clk 0:01:07.5]} 29...
Rbc8 {[%clk 0:02:27]} 30. Rh6 {[%clk 0:00:58.5]} 30... bxc3 {[%clk 0:02:23]} 31.
bxc3 {[%clk 0:01:00.4]} 31... Rxc3 {[%clk 0:02:18.6]} 32. Rah1 {[%clk
0:01:00.6]} 32... Kf8 {[%clk 0:01:55]} 33. Rh7 {[%clk 0:00:49.1]} 1-0

[Event "*** Titled Tuesday Blitz"]
[Site "Chess.com"]
[Date "2019.10.01"]
[Round "2"]
[White "Colombiano07"]
[Black "csati17"]
[Result "0-1"]
[WhiteElo "2211"]
[BlackElo "2482"]
[TimeControl "180+2"]
[EndTime "13:20:35 PDT"]
[Termination "csati17 won by resignation"]

1. e4 {[%clk 0:03:01.9]} 1... e6 {[%clk 0:03:01.1]} 2. d4 {[%clk 0:03:02.4]}
2... d5 {[%clk 0:03:02.4]} 3. Nc3 {[%clk 0:03:04]} 3... Bb4 {[%clk 0:03:02.3]}
4. e5 {[%clk 0:03:05]} 4... Ne7 {[%clk 0:03:02.4]} 5. a3 {[%clk 0:03:06.3]} 5...
Bxc3+ {[%clk 0:03:03.4]} 6. bxc3 {[%clk 0:03:08.2]} 6... b6 {[%clk 0:03:05.1]}
7. a4 {[%clk 0:03:07.1]} 7... Ba6 {[%clk 0:03:04.5]} 8. Bxa6 {[%clk 0:03:07.9]}
8... Nxa6 {[%clk 0:03:06.4]} 9. Ba3 {[%clk 0:03:08.6]} 9... c5 {[%clk
0:03:04.4]} 10. Nf3 {[%clk 0:03:08.8]} 10... Rc8 {[%clk 0:02:52.8]} 11. O-O
{[%clk 0:03:08.7]} 11... Nb8 {[%clk 0:02:45.8]} 12. a5 {[%clk 0:02:37.4]} 12...
Qd7 {[%clk 0:02:20]} 13. axb6 {[%clk 0:02:15.2]} 13... axb6 {[%clk 0:02:21.9]}
14. Ne1 {[%clk 0:01:59.8]} 14... cxd4 {[%clk 0:02:05.4]} 15. cxd4 {[%clk
0:01:54.3]} 15... Nbc6 {[%clk 0:02:06.8]} 16. c3 {[%clk 0:01:54.2]} 16... Na5
{[%clk 0:02:01.1]} 17. Qb1 {[%clk 0:01:43.8]} 17... Nc4 {[%clk 0:01:58]} 18. Bb4
{[%clk 0:01:42.3]} 18... Nd2 {[%clk 0:01:57.6]} 19. Qd3 {[%clk 0:01:42.3]} 19...
Nxf1 {[%clk 0:01:57.5]} 20. Qxf1 {[%clk 0:01:43.3]} 20... O-O {[%clk 0:01:53.7]}
21. Nd3 {[%clk 0:01:42.1]} 21... Ra8 {[%clk 0:01:53.4]} 22. g3 {[%clk
0:01:39.5]} 22... Rxa1 {[%clk 0:01:40]} 23. Qxa1 {[%clk 0:01:35.4]} 23... Qb7
{[%clk 0:01:41.3]} 24. h4 {[%clk 0:01:12.7]} 24... Ra8 {[%clk 0:01:39.6]} 25.
Qd1 {[%clk 0:01:14.2]} 25... Nc6 {[%clk 0:01:33.4]} 26. Bd6 {[%clk 0:00:52.1]}
26... Qa6 {[%clk 0:01:29.6]} 27. Kg2 {[%clk 0:00:50.3]} 27... Qc4 {[%clk
0:01:27]} 28. Qd2 {[%clk 0:00:36.7]} 28... Ra2 {[%clk 0:01:23.6]} 0-1

[Event "*** Titled Tuesday Blitz"]
[Site "Chess.com"]
[Date "2019.10.01"]
[Round "2"]
[White "Marreuh"]
[Black "Natalya_Buksa"]
[Result "0-1"]
[WhiteElo "2102"]
[BlackElo "2439"]
[TimeControl "180+2"]
[EndTime "13:20:50 PDT"]
[Termination "Natalya_Buksa won by resignation"]

1. e4 {[%clk 0:03:01.9]} 1... c5 {[%clk 0:02:59.6]} 2. c3 {[%clk 0:03:00.6]}
2... Nf6 {[%clk 0:02:59.4]} 3. e5 {[%clk 0:02:59.9]} 3... Nd5 {[%clk 0:03:00.5]}
4. d4 {[%clk 0:02:59.6]} 4... cxd4 {[%clk 0:02:59]} 5. cxd4 {[%clk 0:03:01.5]}
5... Nc6 {[%clk 0:02:59]} 6. Nf3 {[%clk 0:03:02.7]} 6... d6 {[%clk 0:03:00.2]}
7. Bc4 {[%clk 0:03:03.4]} 7... Nb6 {[%clk 0:03:00.7]} 8. Bb3 {[%clk 0:03:05]}
8... dxe5 {[%clk 0:03:00.8]} 9. d5 {[%clk 0:03:06.7]} 9... Na5 {[%clk
0:02:46.3]} 10. Nc3 {[%clk 0:03:07.4]} 10... Nxb3 {[%clk 0:02:44.3]} 11. Qxb3
{[%clk 0:03:09.3]} 11... g6 {[%clk 0:02:38.6]} 12. Nxe5 {[%clk 0:03:09.6]} 12...
Bg7 {[%clk 0:02:39.8]} 13. Bf4 {[%clk 0:03:11.1]} 13... O-O {[%clk 0:02:40.1]}
14. O-O {[%clk 0:03:12]} 14... Bf5 {[%clk 0:02:39.2]} 15. Rad1 {[%clk
0:03:09.1]} 15... h6 {[%clk 0:02:38.1]} 16. a4 {[%clk 0:02:58.8]} 16... Nd7
{[%clk 0:02:36.9]} 17. Nf3 {[%clk 0:02:56.1]} 17... Nc5 {[%clk 0:02:37.3]} 18.
Qa3 {[%clk 0:02:39.1]} 18... Rc8 {[%clk 0:02:33.6]} 19. Nb5 {[%clk 0:02:20.9]}
19... Qb6 {[%clk 0:02:25.1]} 20. b4 {[%clk 0:02:12.8]} 20... Ne4 {[%clk
0:02:16.6]} 21. Be3 {[%clk 0:02:12.3]} 21... Qa6 {[%clk 0:02:16.1]} 22. Bxa7
{[%clk 0:02:07]} 22... Nc3 {[%clk 0:02:10.1]} 23. Ra1 {[%clk 0:01:37.8]} 23...
Ne2+ {[%clk 0:01:51.3]} 24. Kh1 {[%clk 0:01:37.6]} 24... Bxa1 {[%clk 0:01:52.6]}
25. Rxa1 {[%clk 0:01:33.1]} 25... Nc3 {[%clk 0:01:51.9]} 26. Nxc3 {[%clk
0:01:08.3]} 26... Qxa7 {[%clk 0:01:48.9]} 27. b5 {[%clk 0:00:57.1]} 27... Qc5
{[%clk 0:01:47.7]} 28. Qxc5 {[%clk 0:00:51.5]} 28... Rxc5 {[%clk 0:01:49.6]} 29.
Ne2 {[%clk 0:00:47]} 29... Bg4 {[%clk 0:01:49.4]} 30. Ned4 {[%clk 0:00:37.1]}
30... Rxd5 {[%clk 0:01:44]} 31. Kg1 {[%clk 0:00:34.5]} 31... Ra8 {[%clk
0:01:42.9]} 32. Kf1 {[%clk 0:00:23.4]} 32... Bxf3 {[%clk 0:01:43.1]} 33. Nxf3
{[%clk 0:00:22.1]} 33... Rxb5 {[%clk 0:01:43.8]} 34. axb5 {[%clk 0:00:21.4]}
34... Rxa1+ {[%clk 0:01:44.1]} 35. Ke2 {[%clk 0:00:23.3]} 35... Ra4 {[%clk
0:01:43.5]} 36. Nd2 {[%clk 0:00:21.9]} 36... Rb4 {[%clk 0:01:44.2]} 0-1

[Event "*** Titled Tuesday Blitz"]
[Site "Chess.com"]
[Date "2019.10.01"]
[Round "2"]
[White "Parhamov"]
[Black "eldur16"]
[Result "1-0"]
[WhiteElo "3032"]
[BlackElo "2626"]
[TimeControl "180+2"]
[EndTime "13:20:56 PDT"]
[Termination "Parhamov won by resignation"]

1. e4 {[%clk 0:03:01.9]} 1... g6 {[%clk 0:02:59.9]} 2. d4 {[%clk 0:03:02.6]}
2... Bg7 {[%clk 0:03:00.8]} 3. Nc3 {[%clk 0:03:04.5]} 3... d6 {[%clk 0:03:01.7]}
4. f4 {[%clk 0:03:05.9]} 4... a6 {[%clk 0:03:01.9]} 5. Be3 {[%clk 0:03:06.4]}
5... b5 {[%clk 0:03:01.6]} 6. Bd3 {[%clk 0:03:07.4]} 6... Nf6 {[%clk 0:02:56.4]}
7. Nf3 {[%clk 0:03:09.3]} 7... Bb7 {[%clk 0:02:54.4]} 8. e5 {[%clk 0:03:04.6]}
8... Nd5 {[%clk 0:02:50.6]} 9. Nxd5 {[%clk 0:03:04.9]} 9... Bxd5 {[%clk
0:02:51]} 10. a4 {[%clk 0:03:06.8]} 10... b4 {[%clk 0:02:45.1]} 11. c4 {[%clk
0:03:08.3]} 11... bxc3 {[%clk 0:02:45]} 12. bxc3 {[%clk 0:03:10.2]} 12... Nd7
{[%clk 0:02:32.3]} 13. O-O {[%clk 0:03:09.3]} 13... c5 {[%clk 0:02:28.3]} 14.
dxc5 {[%clk 0:03:06.9]} 14... Nxc5 {[%clk 0:02:24]} 15. Bxc5 {[%clk 0:03:07.7]}
15... dxc5 {[%clk 0:02:24.1]} 16. Qe2 {[%clk 0:03:09.6]} 16... O-O {[%clk
0:02:17.4]} 17. Be4 {[%clk 0:03:10.9]} 17... Bxe4 {[%clk 0:02:13]} 18. Qxe4
{[%clk 0:03:12.8]} 18... Qc7 {[%clk 0:02:06.7]} 19. h4 {[%clk 0:03:12.7]} 19...
e6 {[%clk 0:01:57.3]} 20. h5 {[%clk 0:03:13.5]} 20... Rab8 {[%clk 0:01:51.8]}
21. hxg6 {[%clk 0:03:13.7]} 21... hxg6 {[%clk 0:01:50.8]} 22. Qe3 {[%clk
0:03:15.6]} 22... c4 {[%clk 0:01:43.6]} 23. Rfb1 {[%clk 0:03:12.7]} 23... Rfd8
{[%clk 0:01:41.1]} 24. Rxb8 {[%clk 0:03:11.3]} 24... Rxb8 {[%clk 0:01:38.7]} 25.
Ng5 {[%clk 0:03:06.5]} 25... Qb6 {[%clk 0:01:35.3]} 26. Qxb6 {[%clk 0:03:05.8]}
26... Rxb6 {[%clk 0:01:35.6]} 27. Rd1 {[%clk 0:03:07.7]} 27... Bh6 {[%clk
0:01:29.3]} 28. Rd8+ {[%clk 0:03:08.7]} 28... Kg7 {[%clk 0:01:29.1]} 29. Rc8
{[%clk 0:03:10.6]} 29... Bxg5 {[%clk 0:00:45.4]} 30. fxg5 {[%clk 0:03:12.5]}
30... Rb2 {[%clk 0:00:45.3]} 31. Rxc4 {[%clk 0:03:11.2]} 31... Ra2 {[%clk
0:00:43.1]} 32. Kh2 {[%clk 0:03:07.8]} 32... Kf8 {[%clk 0:00:41.6]} 33. Kg3
{[%clk 0:03:05.3]} 33... Ke7 {[%clk 0:00:42.3]} 34. Kf4 {[%clk 0:03:04]} 34...
Rf2+ {[%clk 0:00:37.3]} 35. Kg3 {[%clk 0:03:03.9]} 35... Ra2 {[%clk 0:00:37.3]}
36. Kf3 {[%clk 0:03:02.1]} 36... Kd7 {[%clk 0:00:37.9]} 37. Rd4+ {[%clk
0:03:01.5]} 37... Kc7 {[%clk 0:00:35.7]} 38. Rf4 {[%clk 0:02:59.9]} 38... Kc6
{[%clk 0:00:34.3]} 39. Rxf7 {[%clk 0:02:57.8]} 39... Kd5 {[%clk 0:00:34.7]} 40.
Rf6 {[%clk 0:02:57.6]} 40... Kxe5 {[%clk 0:00:35]} 41. Rxg6 {[%clk 0:02:57]}
41... Rxa4 {[%clk 0:00:30]} 42. Rf6 {[%clk 0:02:56.2]} 42... Rc4 {[%clk
0:00:30.6]} 43. Rf8 {[%clk 0:02:53.8]} 43... Rxc3+ {[%clk 0:00:30.6]} 44. Kg4
{[%clk 0:02:54.7]} 44... Rc4+ {[%clk 0:00:27]} 45. Kh5 {[%clk 0:02:55.8]} 45...
Rc2 {[%clk 0:00:27.8]} 46. g3 {[%clk 0:02:53.9]} 46... Rc3 {[%clk 0:00:27.9]}
47. Kh4 {[%clk 0:02:52.8]} 47... Rc4+ {[%clk 0:00:27]} 48. g4 {[%clk 0:02:52.8]}
48... a5 {[%clk 0:00:21.6]} 49. g6 {[%clk 0:02:54]} 49... Rc7 {[%clk 0:00:21.8]}
50. Kg5 {[%clk 0:02:55.2]} 50... Ra7 {[%clk 0:00:20.7]} 51. Rf7 {[%clk
0:02:55.4]} 51... Ra8 {[%clk 0:00:19.5]} 52. g7 {[%clk 0:02:56.8]} 52... Rg8
{[%clk 0:00:19.1]} 53. Kg6 {[%clk 0:02:58]} 53... a4 {[%clk 0:00:19.7]} 54. Kh7
{[%clk 0:02:59.3]} 1-0